{"text_format":"3","workbook":"xlsx","n_sheets":1,"sheets":["Sheet1"],"not_rendered":{"defined_names":2},"read":"whole","date_system":"1900"}

{"sheet":"Sheet1","index":0,"n_rows":30,"n_cols":15,"rows_kept":30,"merged":[[0,0,0,14],[1,0,1,14],[6,14,7,14],[8,14,9,14],[11,14,12,14],[13,14,14,14],[15,14,16,14],[17,14,18,14],[19,14,20,14],[21,14,22,14],[25,14,26,14],[27,14,28,14]]}
["附件1："]
["2023年大理州弥渡县特岗教师招聘岗位计划表"]
["设岗县","招聘岗位","学科","学段","岗位简介","招聘人数","性别要求","学历\n要求","学位要求","专业需求","教师资格证要求","教师资格证专业要求","其它招考条件要求","是否受开考比例限制","备注"]
["弥渡县","专业技术人员","美术","小学",{"$f":"D4&C4&\"教育教学工作\"","v":"小学美术教育教学工作"},1,"不限","本科及以上","学士及以上学位","美术教育、版画、壁画、美术、美术绘画、美术学、油画、中国画、中国画与书法、绘画、绘画教育、书法、书法学、书法教育、艺术硕士专业（美术）、学科教学（美术）","小学教师资格证及以上","美术","无","否"]
["弥渡县","专业技术人员","数学","小学","小学数学教育教学工作",5,"男","本科及以上","学士及以上学位","小学教育、数学教育、基础数学、计算数学、数学、应用数学、数理基础科学、数学基础科学、数学与应用数学、学科数理基地班","小学教师资格证及以上","数学","无","否","统招统分，考生按综合成绩从高到低择优选岗"]
["弥渡县","专业技术人员","数学","小学","小学数学教育教学工作",5,"女","本科及以上","学士及以上学位","小学教育、数学教育、基础数学、计算数学、数学、应用数学、数理基础科学、数学基础科学、数学与应用数学、学科数理基地班","小学教师资格证及以上","数学","无","否","统招统分，考生按综合成绩从高到低择优选岗"]
["弥渡县","专业技术人员","体育","小学","小学体育教育教学工作",1,"男","本科及以上","学士及以上学位","体育教育、社会体育、社会体育指导、社会体育指导与管理、体育、体育管理、体育教学、体育教育、体育教育训练学、体育学、小学体育教学","小学教师资格证及以上","体育","无","否","统招统分，考生按综合成绩从高到低择优选岗"]
["弥渡县","专业技术人员","体育","小学","小学体育教育教学工作",1,"女","本科及以上","学士及以上学位","体育教育、社会体育、社会体育指导、社会体育指导与管理、体育、体育管理、体育教学、体育教育、体育教育训练学、体育学、小学体育教学","小学教师资格证及以上","体育","无","否"]
["弥渡县","专业技术人员","音乐","小学","小学音乐教育教学工作",1,"男","本科及以上","学士及以上学位","艺术教育、音乐教育、音乐表演、音乐学、音乐与舞蹈学、音乐舞蹈教育、舞蹈学、音乐与舞蹈、中国乐器演奏、键盘乐器演奏、演唱、音乐剧","小学教师资格证及以上","音乐","无","否","统招统分，考生按综合成绩从高到低择优选岗"]
["弥渡县","专业技术人员","音乐","小学",{"$f":"D10&C10&\"教育教学工作\"","v":"小学音乐教育教学工作"},1,"女","本科及以上","学士及以上学位","艺术教育、音乐教育、音乐表演、音乐学、音乐与舞蹈学、音乐舞蹈教育、舞蹈学、音乐与舞蹈、中国乐器演奏、键盘乐器演奏、演唱、音乐剧","小学教师资格证及以上","音乐","无","否"]
["弥渡县","专业技术人员","英语","小学","小学英语教育教学工作",1,"不限","本科及以上","学士及以上学位","英语语言文学、英语教育、公共英语、教育英语、实用英语、外国语言文学、外国语言文学及应用语言学、一般英语应用、英汉笔译、英语、英语笔译、翻译、英语翻译、英语和高等教育、英语教学、英语教育与翻译、英语口译、英语文学、英语应用、英语语言文学、应用英语、学科课程与教学论","小学教师资格证及以上","英语","无","否"]
["弥渡县","专业技术人员","语文","小学","小学语文教育教学工作",5,"男","本科及以上","学士及以上学位","初等教育、小学教育、汉语、汉语言、汉语言文学、汉语言文学教育、汉语言文字学、汉语语言文学、中国语言文学、语言学及应用语言学、中文、语文教育、文史教育、人文教育、学科文学阅读与文学教育、对外汉语、汉语国际教育","小学教师资格证及以上","语文","无","否","统招统分，考生按综合成绩从高到低择优选岗"]
["弥渡县","专业技术人员","语文","小学",{"$f":"D13&C13&\"教育教学工作\"","v":"小学语文教育教学工作"},5,"女","本科及以上","学士及以上学位","初等教育、小学教育、汉语、汉语言、汉语言文学、汉语言文学教育、汉语言文字学、汉语语言文学、中国语言文学、语言学及应用语言学、中文、语文教育、文史教育、人文教育、学科文学阅读与文学教育、对外汉语、汉语国际教育","小学教师资格证及以上","语文","无","否"]
["弥渡县","专业技术人员","道德与法治","初中","初中道德与法治教育教学工作",1,"男","本科及以上","学士及以上学位","马克思主义理论与思想政治教育、思想政治教育、政治、政治和思想品德教育、政治理论、政治学、政治学理论、政治学与行政学、史政教育、思想教育、学科政史教育、政治教育、政治历史教育、政治与思想品德教育","初中教师资格证及以上","政治","无","否","统招统分，考生按综合成绩从高到低择优选岗"]
["弥渡县","专业技术人员","道德与法治","初中","初中道德与法治教育教学工作",1,"女","本科及以上","学士及以上学位","马克思主义理论与思想政治教育、思想政治教育、政治、政治和思想品德教育、政治理论、政治学、政治学理论、政治学与行政学、史政教育、思想教育、学科政史教育、政治教育、政治历史教育、政治与思想品德教育","初中教师资格证及以上","政治","无","否"]
["弥渡县","专业技术人员","地理","初中","初中地理教育教学工作",1,"男","本科及以上","学士及以上学位","地理教育、学科地理、地理科学、地理学、地理学教育","初中教师资格证及以上","地理","无","否","统招统分，考生按综合成绩从高到低择优选岗"]
["弥渡县","专业技术人员","地理","初中",{"$f":"D17&C17&\"教育教学工作\"","v":"初中地理教育教学工作"},1,"女","本科及以上","学士及以上学位","地理教育、学科地理、地理科学、地理学、地理学教育","初中教师资格证及以上","地理","无","否"]
["弥渡县","专业技术人员","历史","初中","初中历史教育教学工作",1,"男","本科及以上","学士及以上学位","课程与教学论、 历史教育、 人文教育、 师范教育、 史政教育、 文史教育、 学科教学、 政史教育、 政治历史教育、 历史、 历史地理学、 历史文献学、 历史学、 历史学教育、 史学理论及史学史、 世界历史、 世界史、 外国语言与外国历史、 中国古代史、 中国近代史、 中国近现代史、 中国近现代史基本问题研究、 中国史、 专门史","初中教师资格证及以上","历史","无","否","统招统分，考生按综合成绩从高到低择优选岗"]
["弥渡县","专业技术人员","历史","初中","初中历史教育教学工作",1,"女","本科及以上","学士及以上学位","课程与教学论、 历史教育、 人文教育、 师范教育、 史政教育、 文史教育、 学科教学、 政史教育、 政治历史教育、 历史、 历史地理学、 历史文献学、 历史学、 历史学教育、 史学理论及史学史、 世界历史、 世界史、 外国语言与外国历史、 中国古代史、 中国近代史、 中国近现代史、 中国近现代史基本问题研究、 中国史、 专门史","初中教师资格证及以上","历史","无","否"]
["弥渡县","专业技术人员","生物","初中","初中生物教育教学工作",2,"男","本科及以上","学士及以上学位","生物教育；生物教育学；生物学教育；生物科学；生物学；应用生物；应用生物技术教育；应用生物技术科学；应用生物科学；应用生物学教育；应用生物教育；课程与教学论（生物方向）；师范教育（生物方向）；学科教学（生物方向）；学科课程与教学论（生物方向）；生物基地班","初中教师资格证及以上","生物","无","否","统招统分，考生按综合成绩从高到低择优选岗"]
["弥渡县","专业技术人员","生物","初中",{"$f":"D21&C21&\"教育教学工作\"","v":"初中生物教育教学工作"},2,"女","本科及以上","学士及以上学位","生物教育；生物教育学；生物学教育；生物科学；生物学；应用生物；应用生物技术教育；应用生物技术科学；应用生物科学；应用生物学教育；应用生物教育；课程与教学论（生物方向）；师范教育（生物方向）；学科教学（生物方向）；学科课程与教学论（生物方向）；生物基地班","初中教师资格证及以上","生物","无","否"]
["弥渡县","专业技术人员","数学","初中","初中数学教育教学工作",2,"男","本科及以上","学士及以上学位","数学教育、基础数学、计算数学、数学、应用数学、数理基础科学、数学基础科学、数学与应用数学、学科数理基地班","初中教师资格证及以上","数学","无","否","统招统分，考生按综合成绩从高到低择优选岗"]
["弥渡县","专业技术人员","数学","初中","初中数学教育教学工作",2,"女","本科及以上","学士及以上学位","数学教育、基础数学、计算数学、数学、应用数学、数理基础科学、数学基础科学、数学与应用数学、学科数理基地班","初中教师资格证及以上","数学","无","否"]
["弥渡县","专业技术人员","体育","初中","初中体育教育教学工作",1,"不限","本科及以上","学士及以上学位","体育教育、社会体育、社会体育指导、社会体育指导与管理、体育、体育管理、体育教学、体育教育、体育教育训练学、体育学","初中教师资格证及以上","体育","无","否"]
["弥渡县","专业技术人员","音乐","初中","初中音乐教育教学工作",1,"不限","本科及以上","学士及以上学位","课程与教学论、 学科教学、 学科课程与教学论、 艺术教育、 音乐教育、 音乐舞蹈教育、 流行音乐、 演唱、 音乐表演、 音乐舞蹈教育、 音乐学、 音乐与舞蹈、 音乐与舞蹈学","初中教师资格证及以上","音乐","无","否"]
["弥渡县","专业技术人员","英语","初中","初中英语教育教学工作",2,"男","本科及以上","学士及以上学位","英语语言文学、英语教育、公共英语、教育英语、实用英语、外国语言文学、外国语言文学及应用语言学、一般英语应用、英汉笔译、英语、英语笔译、翻译、英语翻译、英语和高等教育、英语教学、英语教育与翻译、英语口译、英语文学、英语应用、英语语言文学、应用英语、学科课程与教学论","初中教师资格证及以上","英语","无","否","统招统分，考生按综合成绩从高到低择优选岗"]
["弥渡县","专业技术人员","英语","初中","初中英语教育教学工作",2,"女","本科及以上","学士及以上学位","英语语言文学、英语教育、公共英语、教育英语、实用英语、外国语言文学、外国语言文学及应用语言学、一般英语应用、英汉笔译、英语、英语笔译、翻译、英语翻译、英语和高等教育、英语教学、英语教育与翻译、英语口译、英语文学、英语应用、英语语言文学、应用英语、学科课程与教学论","初中教师资格证及以上","英语","无","否"]
["弥渡县","专业技术人员","语文","初中","初中语文教育教学工作",2,"男","本科及以上","学士及以上学位","初等教育、汉语、汉语言、汉语言文学、汉语言文学教育、汉语言文字学、汉语语言文学、中国语言文学、语言学及应用语言学、中文、语文教育、文史教育、人文教育、学科文学阅读与文学教育、对外汉语、汉语国际教育","初中教师资格证及以上","语文","无","否","统招统分，考生按综合成绩从高到低择优选岗"]
["弥渡县","专业技术人员","语文","初中","初中语文教育教学工作",2,"女","本科及以上","学士及以上学位","初等教育、汉语、汉语言、汉语言文学、汉语言文学教育、汉语言文字学、汉语语言文学、中国语言文学、语言学及应用语言学、中文、语文教育、文史教育、人文教育、学科文学阅读与文学教育、对外汉语、汉语国际教育","初中教师资格证及以上","语文","无","否"]
["合计",{"$nulls":4},{"$f":"SUM(F4:F29)","v":50}]